[Event "XVIII Orsha IM 2020"]
[Site "Orsha"]
[Date "2020.01.19"]
[Round "3.4"]
[White "Goltseva, Ekaterina"]
[Black "Runets, Ivan"]
[Result "1/2-1/2"]
[ECO "D36"]
[WhiteElo "2304"]
[BlackElo "2304"]
[Annotator "ChessBase"]
[PlyCount "88"]
[EventDate "2020.01.18"]
[EventType "tourn"]
[EventCountry "BLR"]
[SourceTitle "playchess.com"]
[Source "ChessBase"]
[SourceQuality "1"]
[TimeControl "5400+30"]

1. d4 {[%emt 0:00:00]} Nf6 {[%emt 0:01:32]} 2. c4 {[%emt 0:00:09]} e6 {[%emt 0:00:11]} 3. Nc3 {[%emt 0:00:51]} d5 {[%emt 0:00:07]} 4. cxd5 {[%emt 0:01:08]} exd5 {[%emt 0:00:02]} 5. Bg5 {[%emt 0:00:09]} c6 {[%emt 0:00:05]} 6. e3 {[%emt 0:00:42]} Be7 {[%emt 0:00:09]} 7. Qc2 {[%emt 0:00:46]} Nbd7 {[%emt 0:00:10]} 8. Bd3 {[%emt 0:00:41]} O-O {[%emt 0:00:09]} 9. Nge2 {[%emt 0:00:21]} Re8 {[%emt 0:00:13]} 10. O-O {[%emt 0:05:08]} Nf8 {[%emt 0:00:34]} 11. f3 {[%emt 0:05:41]} Be6 {[%emt 0:02:28]} 12. Rad1 {[%emt 0:04:11]} Ng6 {[%emt 0:02:11]} 13. Ng3 {[%emt 0:10:08]} Rc8 {[%emt 0:14:27]} 14. Nf5 {[%emt 0:04:14]} Bf8 {[%emt 0:00:12]} 15. Qf2 {[%emt 0:14:06]} h6 {[%emt 0:04:43]} 16. Bh4 {[%emt 0:01:05]} Nxh4 {[%emt 0:00:24]} 17. Qxh4 {[%emt 0:00:13]} Rc7 {[%emt 0:08:07]} 18. Rfe1 {[%emt 0:02:39]} a6 {[%emt 0:07:12]} 19. Bb1 {[%emt 0:08:52]} c5 {[%emt 0:07:40]} 20. Kh1 {[%emt 0:01:49]} c4 {[%emt 0:06:08]} 21. g4 {[%emt 0:13:26]} b5 {[%emt 0:03:41]} 22. g5 {[%emt 0:11:42]} Nh7 {[%emt 0:05:17]} 23. gxh6 {[%emt 0:02:27]} Bxf5 {[%emt 0:03:05]} 24. Qxd8 {[%emt 0:00:14]} Rxd8 {[%emt 0:00:24]} 25. hxg7 {[%emt 0:01:00]} Bxg7 {[%emt 0:07:00]} 26. Bxf5 {[%emt 0:00:05]} b4 {[%emt 0:01:07]} 27. Ne2 {[%emt 0:02:49]} Re7 {[%emt 0:04:01]} 28. Ng3 {[%emt 0:03:18]} Rde8 {[%emt 0:01:15]} 29. e4 {[%emt 0:00:38]} Ng5 {[%emt 0:10:02]} 30. Kg2 {[%emt 0:01:26]} dxe4 {[%emt 0:01:07]} 31. fxe4 {[%emt 0:00:25]} Rd8 {[%emt 0:00:52]} 32. e5 {[%emt 0:00:35]} Ne6 {[%emt 0:00:38]} 33. Bxe6 {[%emt 0:01:30]} fxe6 {[%emt 0:00:02]} 34. Re4 {[%emt 0:01:49]} Rd5 {[%emt 0:00:47]} 35. Rc1 {[%emt 0:01:18]} Rc7 {[%emt 0:00:11]} 36. a3 {[%emt 0:00:46]} c3 {[%emt 0:03:46]} 37. axb4 {[%emt 0:01:21]} cxb2 {[%emt 0:00:56]} 38. Rb1 {[%emt 0:00:12]} Rc4 {[%emt 0:00:27]} 39. Rxb2 {[%emt 0:00:50]} Rdxd4 {[%emt 0:00:07]} 40. Rxd4 {[%emt 0:00:30]} Rxd4 {[%emt 0:00:02]} 41. Ra2 {[%emt 0:00:36]} Rxb4 {[%emt 0:00:38]} 42. Rxa6 {[%emt 0:00:06]} Bxe5 {[%emt 0:00:30]} 43. Rxe6 {[%emt 0:00:07]} Bxg3 {[%emt 0:00:03]} 44. hxg3 {[%emt 0:00:06]} Kg7 {[%emt 0:00:06]} 1/2-1/2

[Event "XVIII Orsha IM 2020"]
[Site "Orsha"]
[Date "2020.01.19"]
[Round "3.5"]
[White "Tsaruk, Maksim"]
[Black "Markelova, Lubov"]
[Result "1-0"]
[ECO "C08"]
[WhiteElo "2316"]
[BlackElo "2200"]
[Annotator "ChessBase"]
[PlyCount "101"]
[EventDate "2020.01.18"]
[EventType "tourn"]
[EventCountry "BLR"]
[SourceTitle "playchess.com"]
[Source "ChessBase"]
[SourceQuality "1"]
[TimeControl "5400+30"]

1. e4 {[%emt 0:00:00]} e6 {[%emt 0:00:00]} 2. d4 {[%emt 0:00:00]} d5 {[%emt 0:00:00]} 3. Nd2 {[%emt 0:00:00]} c5 {[%emt 0:00:00]} 4. exd5 {[%emt 0:00:00]} exd5 {[%emt 0:00:10]} 5. Ngf3 {[%emt 0:00:30]} Nf6 {[%emt 0:00:26]} 6. Bb5+ {[%emt 0:00:48]} Bd7 {[%emt 0:00:06]} 7. Bxd7+ {[%emt 0:01:09]} Nbxd7 {[%emt 0:00:07]} 8. O-O {[%emt 0:00:05]} Be7 {[%emt 0:00:06]} 9. dxc5 {[%emt 0:00:18]} Nxc5 {[%emt 0:00:08]} 10. Re1 {[%emt 0:00:59]} O-O {[%emt 0:00:37]} 11. Nf1 {[%emt 0:01:23]} Nce4 {[%emt 0:04:45]} 12. Be3 {[%emt 0:03:45]} Bc5 {[%emt 0:06:46]} 13. Bxc5 {[%emt 0:08:19]} Nxc5 {[%emt 0:00:06]} 14. Ne3 {[%emt 0:00:06]} Re8 {[%emt 0:03:39]} 15. Qd2 {[%emt 0:04:56]} Qd7 {[%emt 0:03:32]} 16. Rad1 {[%emt 0:11:19]} Rad8 {[%emt 0:00:51]} 17. Qb4 {[%emt 0:19:08]} b6 {[%emt 0:13:53]} 18. a3 {[%emt 0:00:06]} Qc8 {[%emt 0:09:53]} 19. Nd4 {[%emt 0:20:18]} Nce4 {[%emt 0:08:56]} 20. Nef5 {[%emt 0:08:30]} Qc7 {[%emt 0:11:42]} 21. f3 {[%emt 0:01:38]} a5 {[%emt 0:04:13]} 22. Qb5 {[%emt 0:00:25]} Nd6 {[%emt 0:04:48]} 23. Nxd6 {[%emt 0:03:41]} Qxd6 {[%emt 0:01:19]} 24. Nc6 {[%emt 0:08:50]} Rc8 {[%emt 0:02:21]} 25. Rxe8+ {[%emt 0:03:18]} Rxe8 {[%emt 0:02:03]} 26. Nd4 {[%emt 0:02:54]} g6 {[%emt 0:06:38]} 27. Qc6 {[%emt 0:00:12]} Qxc6 {[%emt 0:07:44]} 28. Nxc6 {[%emt 0:00:01]} Kf8 {[%emt 0:01:28]} 29. Kf2 {[%emt 0:00:01]} Rc8 {[%emt 0:00:59]} 30. Nd4 {[%emt 0:00:01]} Ke7 {[%emt 0:01:05]} 31. Ke3 {[%emt 0:00:16]} Kd6 {[%emt 0:02:49]} 32. Kd2 {[%emt 0:00:06]} Kc5 {[%emt 0:01:34]} 33. Ne2 {[%emt 0:01:21]} Nd7 {[%emt 0:02:56]} 34. Kc1 {[%emt 0:00:07]} Ne5 {[%emt 0:00:41]} 35. Nc3 {[%emt 0:02:14]} d4 {[%emt 0:00:38]} 36. Na4+ {[%emt 0:00:24]} Kc6 {[%emt 0:00:30]} 37. Rxd4 {[%emt 0:00:07]} b5 {[%emt 0:00:19]} 38. Nc3 {[%emt 0:00:05]} f5 {[%emt 0:00:27]} 39. Rd5 {[%emt 0:01:29]} Re8 {[%emt 0:00:40]} 40. Rxb5 {[%emt 0:00:30]} Nc4 {[%emt 0:00:16]} 41. Rd5 {[%emt 0:00:06]} a4 {[%emt 0:00:48]} 42. Rd1 {[%emt 0:00:20]} Nb6 {[%emt 0:00:29]} 43. Rf1 {[%emt 0:01:11]} g5 {[%emt 0:00:28]} 44. g4 {[%emt 0:00:27]} Re5 {[%emt 0:00:31]} 45. f4 {[%emt 0:00:29]} gxf4 {[%emt 0:00:22]} 46. Rxf4 {[%emt 0:00:05]} fxg4 {[%emt 0:00:10]} 47. Rxg4 {[%emt 0:00:06]} Re1+ {[%emt 0:00:51]} 48. Kd2 {[%emt 0:00:08]} Rh1 {[%emt 0:00:09]} 49. Rh4 {[%emt 0:00:07]} h5 {[%emt 0:00:25]} 50. Kd3 {[%emt 0:00:53]} Nc8 {[%emt 0:01:36]} 51. Ke4 {[%emt 0:02:19]} 1-0

[Event "XVIII Orsha IM 2020"]
[Site "Orsha"]
[Date "2020.01.20"]
[Round "4.1"]
[White "Gogolev, Artem"]
[Black "Markelova, Lubov"]
[Result "1-0"]
[ECO "D12"]
[WhiteElo "2328"]
[BlackElo "2200"]
[Annotator "RC"]
[PlyCount "69"]
[EventDate "2020.01.18"]
[EventType "tourn"]
[EventCountry "BLR"]
[SourceTitle "playchess.com"]
[Source "ChessBase"]
[SourceQuality "1"]
[TimeControl "5400+30"]

1. d4 {[%emt 0:11:55]} d5 {[%emt 0:00:00]} 2. c4 {[%emt 0:00:06]} c6 {[%emt 0:00:00]} 3. Nf3 {[%emt 0:00:13]} Nf6 {[%emt 0:00:41]} 4. e3 {[%emt 0:00:14]} Bf5 {[%emt 0:01:07]} 5. Nc3 {[%emt 0:00:17]} e6 {[%emt 0:00:25]} 6. Nh4 {[%emt 0:00:24]} Be4 {[%emt 0:00:24]} 7. f3 {[%emt 0:00:12]} Bg6 {[%emt 0:00:05]} 8. Qb3 {[%emt 0:00:22]} Qc7 {[%emt 0:02:48]} 9. cxd5 {[%emt 0:01:06]} exd5 {[%emt 0:01:29]} 10. e4 {[%emt 0:18:34]} dxe4 {[%emt 0:06:34]} 11. Nxg6 {[%emt 0:00:14]} hxg6 {[%emt 0:00:06]} 12. fxe4 {[%emt 0:00:12]} Nbd7 {[%emt 0:08:51]} 13. e5 {[%emt 0:16:35]} Nxe5 {[%emt 0:03:03]} 14. dxe5 {[%emt 0:00:16]} Qxe5+ {[%emt 0:00:04]} 15. Be2 {[%emt 0:01:08]} Rxh2 {[%emt 0:21:31]} 16. Rxh2 {[%emt 0:04:29]} Qg3+ {[%emt 0:00:06]} 17. Kd1 {[%emt 0:03:14]} O-O-O+ {[%emt 0:02:40]} 18. Kc2 {[%emt 0:02:16]} Qxh2 {[%emt 0:02:01]} 19. Qxf7 {[%emt 0:03:34]} Qg3 {[%emt 0:21:16]} 20. Bd2 {[%emt 0:06:23]} Bb4 {[%emt 0:09:14]} 21. Qe6+ {[%emt 0:01:49]} Kb8 {[%emt 0:01:11]} 22. Qe3 {[%emt 0:05:12]} Qxg2 {[%emt 0:06:06]} 23. Rg1 {[%emt 0:00:31]} Qh2 {[%emt 0:00:33]} 24. Qf4+ {[%emt 0:00:25]} Qxf4 {[%emt 0:01:41]} 25. Bxf4+ {[%emt 0:00:06]} Bd6 {[%emt 0:00:38]} 26. Bxd6+ {[%emt 0:01:36]} Rxd6 {[%emt 0:00:04]} 27. Rxg6 {[%emt 0:00:07]} Rd7 {[%emt 0:00:07]} 28. Bd3 {[%emt 0:01:43]} Re7 {[%emt 0:00:31]} 29. Rg2 {[%emt 0:00:41]} Kc7 {[%emt 0:00:22]} 30. a3 {[%emt 0:00:40]} a5 {[%emt 0:01:34]} 31. Ne2 {[%emt 0:01:33]} Nd5 {[%emt 0:00:26]} 32. Rg5 {[%emt 0:01:06]} b5 {[%emt 0:01:06]} 33. Nd4 {[%emt 0:01:10]} Ne3+ {[%emt 0:02:22]} 34. Kd2 {[%emt 0:00:37]} Kb6 {[%emt 0:04:01]} 35. Rg6 {[%emt 0:02:21]} 1-0

[Event "XVIII Orsha IM 2020"]
[Site "Orsha"]
[Date "2020.01.20"]
[Round "4.2"]
[White "Runets, Ivan"]
[Black "Tsaruk, Maksim"]
[Result "1/2-1/2"]
[ECO "D27"]
[WhiteElo "2304"]
[BlackElo "2316"]
[Annotator "RC"]
[PlyCount "107"]
[EventDate "2020.01.18"]
[EventType "tourn"]
[EventCountry "BLR"]
[SourceTitle "playchess.com"]
[Source "ChessBase"]
[SourceQuality "1"]
[TimeControl "5400+30"]

1. d4 {[%emt 0:01:47]} d5 {[%emt 0:00:00]} 2. c4 {[%emt 0:00:07]} dxc4 {[%emt 0:00:00]} 3. e3 {[%emt 0:00:03]} Nf6 {[%emt 0:00:00]} 4. Bxc4 {[%emt 0:00:26]} e6 {[%emt 0:00:04]} 5. Nf3 {[%emt 0:00:35]} c5 {[%emt 0:00:09]} 6. O-O {[%emt 0:00:08]} a6 {[%emt 0:00:03]} 7. Bb3 {[%emt 0:00:50]} Nc6 {[%emt 0:00:40]} 8. Nc3 {[%emt 0:00:18]} Be7 {[%emt 0:00:14]} 9. dxc5 {[%emt 0:10:05]} Bxc5 {[%emt 0:00:29]} 10. Qxd8+ {[%emt 0:01:48]} Kxd8 {[%emt 0:00:09]} 11. a3 {[%emt 0:06:05]} Ke7 {[%emt 0:23:04]} 12. Bd2 {[%emt 0:02:09]} Rd8 {[%emt 0:12:54]} 13. Rfc1 {[%emt 0:05:08]} Ba7 {[%emt 0:17:31]} 14. Be1 {[%emt 0:10:48]} Bd7 {[%emt 0:07:12]} 15. Na2 {[%emt 0:13:16]} Rac8 {[%emt 0:11:35]} 16. Nb4 {[%emt 0:04:27]} Bb8 {[%emt 0:00:04]} 17. Nd3 {[%emt 0:05:31]} Ne4 {[%emt 0:00:53]} 18. Nc5 {[%emt 0:07:01]} Nxc5 {[%emt 0:00:15]} 19. Rxc5 {[%emt 0:00:02]} Bd6 {[%emt 0:04:36]} 20. Rc3 {[%emt 0:05:12]} Ne5 {[%emt 0:03:56]} 21. Nd4 {[%emt 0:01:00]} Rxc3 {[%emt 0:00:22]} 22. Bxc3 {[%emt 0:00:08]} Rc8 {[%emt 0:00:09]} 23. Rc1 {[%emt 0:05:22]} Nd3 {[%emt 0:04:44]} 24. Rd1 {[%emt 0:06:25]} Nc5 {[%emt 0:00:08]} 25. Bb4 {[%emt 0:00:43]} a5 {[%emt 0:02:43]} 26. Bxc5 {[%emt 0:00:26]} Bxc5 {[%emt 0:00:06]} 27. Ne2 {[%emt 0:01:53]} Bd6 {[%emt 0:04:52]} 28. Rc1 {[%emt 0:01:11]} Rxc1+ {[%emt 0:03:00]} 29. Nxc1 {[%emt 0:00:03]} h5 {[%emt 0:00:43]} 30. h4 {[%emt 0:01:49]} g6 {[%emt 0:01:14]} 31. Bc2 {[%emt 0:01:53]} Be5 {[%emt 0:00:59]} 32. Nd3 {[%emt 0:00:23]} Bf6 {[%emt 0:00:04]} 33. g3 {[%emt 0:01:02]} Bc6 {[%emt 0:00:05]} 34. a4 {[%emt 0:00:52]} Kd6 {[%emt 0:01:29]} 35. Kf1 {[%emt 0:01:25]} Be4 {[%emt 0:01:03]} 36. Ke2 {[%emt 0:01:32]} b6 {[%emt 0:01:50]} 37. b3 {[%emt 0:00:22]} Bc3 {[%emt 0:00:35]} 38. Nb4 {[%emt 0:02:47]} Bb7 {[%emt 0:00:02]} 39. Na2 {[%emt 0:00:04]} Bb2 {[%emt 0:00:15]} 40. Bd3 {[%emt 0:00:12]} Bd5 {[%emt 0:00:09]} 41. Bc2 {[%emt 0:00:40]} b5 {[%emt 0:01:35]} 42. axb5 {[%emt 0:03:35]} Kc5 {[%emt 0:00:01]} 43. e4 {[%emt 0:00:10]} Bb7 {[%emt 0:00:15]} 44. Bd3 {[%emt 0:00:16]} Bd4 {[%emt 0:01:01]} 45. f3 {[%emt 0:01:31]} Bc8 {[%emt 0:00:44]} 46. Bc4 {[%emt 0:00:34]} Bd7 {[%emt 0:00:18]} 47. Nc1 {[%emt 0:00:31]} Bxb5 {[%emt 0:00:39]} 48. Nd3+ {[%emt 0:00:03]} Kb6 {[%emt 0:00:05]} 49. Bxb5 {[%emt 0:00:03]} Kxb5 {[%emt 0:00:03]} 50. f4 {[%emt 0:00:19]} Kc6 {[%emt 0:01:24]} 51. Kf3 {[%emt 0:01:29]} Kd6 {[%emt 0:00:12]} 52. g4 {[%emt 0:00:40]} f5 {[%emt 0:00:32]} 53. g5 {[%emt 0:00:30]} Bc3 {[%emt 0:00:39]} 54. Ke3 {[%emt 0:01:21] Ke5} 1/2-1/2

[Event "XVIII Orsha IM 2020"]
[Site "Orsha"]
[Date "2020.01.20"]
[Round "4.3"]
[White "Alekseev, Vadim"]
[Black "Goltseva, Ekaterina"]
[Result "1/2-1/2"]
[ECO "C26"]
[WhiteElo "2354"]
[BlackElo "2304"]
[Annotator "RC"]
[PlyCount "73"]
[EventDate "2020.01.18"]
[EventType "tourn"]
[EventCountry "BLR"]
[SourceTitle "playchess.com"]
[Source "ChessBase"]
[SourceQuality "1"]
[TimeControl "5400+30"]

1. e4 {[%emt 0:00:00]} e5 {[%emt 0:00:32]} 2. Nc3 {[%emt 0:00:00]} Nf6 {[%emt 0:00:25]} 3. g3 {[%emt 0:00:00]} d5 {[%emt 0:02:40]} 4. exd5 {[%emt 0:00:00]} Nxd5 {[%emt 0:00:02]} 5. Bg2 {[%emt 0:00:00]} Nxc3 {[%emt 0:00:27]} 6. bxc3 {[%emt 0:00:04]} Nc6 {[%emt 0:03:04]} 7. Ne2 {[%emt 0:01:50]} Bd6 {[%emt 0:03:56]} 8. d4 {[%emt 0:04:02]} O-O {[%emt 0:02:12]} 9. O-O {[%emt 0:07:10]} Bg4 {[%emt 0:04:19]} 10. Rb1 {[%emt 0:05:51]} Rb8 {[%emt 0:10:10]} 11. d5 {[%emt 0:08:18]} Na5 {[%emt 0:03:39]} 12. h3 {[%emt 0:02:06]} Bh5 {[%emt 0:06:46]} 13. g4 {[%emt 0:10:21]} Bg6 {[%emt 0:00:15]} 14. Ng3 {[%emt 0:03:56]} Nc4 {[%emt 0:06:17]} 15. Qe2 {[%emt 0:01:18]} b5 {[%emt 0:04:10]} 16. a4 {[%emt 0:05:00]} a6 {[%emt 0:00:42]} 17. axb5 {[%emt 0:00:54]} axb5 {[%emt 0:00:06]} 18. Be4 {[%emt 0:01:09]} Be7 {[%emt 0:09:15]} 19. Rd1 {[%emt 0:06:10]} Bxe4 {[%emt 0:11:42]} 20. Qxe4 {[%emt 0:03:45]} g6 {[%emt 0:00:45]} 21. Bh6 {[%emt 0:06:28]} Re8 {[%emt 0:00:32]} 22. Be3 {[%emt 0:03:34]} Bg5 {[%emt 0:09:37]} 23. Qf3 {[%emt 0:02:24]} Nd6 {[%emt 0:03:26]} 24. Ne4 {[%emt 0:02:59]} Nxe4 {[%emt 0:05:00]} 25. Qxe4 {[%emt 0:00:07]} Bxe3 {[%emt 0:02:16]} 26. Qxe3 {[%emt 0:03:48]} Qd7 {[%emt 0:01:49]} 27. Ra1 {[%emt 0:01:21]} Qd6 {[%emt 0:03:56]} 28. Ra7 {[%emt 0:02:55]} Ra8 {[%emt 0:00:21]} 29. Rxa8 {[%emt 0:01:51]} Rxa8 {[%emt 0:00:04]} 30. Qe2 {[%emt 0:02:20]} Ra3 {[%emt 0:01:13]} 31. Rd3 {[%emt 0:02:06]} Ra1+ {[%emt 0:00:27]} 32. Kg2 {[%emt 0:00:08]} Ra4 {[%emt 0:00:24]} 33. f3 {[%emt 0:01:41]} Rc4 {[%emt 0:01:44]} 34. Re3 {[%emt 0:03:34]} Qxd5 {[%emt 0:00:33]} 35. Rxe5 {[%emt 0:00:06]} Qd6 {[%emt 0:00:31]} 36. Rxb5 {[%emt 0:04:10]} Rxc3 {[%emt 0:00:24]} 37. Rb3 {[%emt 0:00:13]} 1/2-1/2

[Event "XVIII Orsha IM 2020"]
[Site "Orsha"]
[Date "2020.01.21"]
[Round "6.5"]
[White "Kononenko, Dmitry"]
[Black "Makoveev, Ilya"]
[Result "1-0"]
[ECO "A30"]
[WhiteElo "2321"]
[BlackElo "2277"]
[Annotator "ChessBase"]
[PlyCount "79"]
[EventDate "2020.01.18"]
[EventType "tourn"]
[EventCountry "BLR"]
[SourceTitle "playchess.com"]
[Source "ChessBase"]
[SourceQuality "1"]
[TimeControl "5400+30"]

1. Nf3 {[%emt 0:00:00]} c5 {[%emt 0:00:20]} 2. c4 {[%emt 0:00:04]} b6 {[%emt 0:00:29]} 3. Nc3 {[%emt 0:07:28]} Bb7 {[%emt 0:00:21]} 4. g3 {[%emt 0:01:19]} g6 {[%emt 0:00:16]} 5. Bg2 {[%emt 0:00:31]} Bg7 {[%emt 0:00:06]} 6. O-O {[%emt 0:00:25]} d6 {[%emt 0:00:31]} 7. d3 {[%emt 0:07:01]} Nf6 {[%emt 0:00:23]} 8. e4 {[%emt 0:00:30]} O-O {[%emt 0:03:04]} 9. h3 {[%emt 0:00:50]} Nc6 {[%emt 0:00:29]} 10. Be3 {[%emt 0:00:38]} Rc8 {[%emt 0:00:59]} 11. Nh2 {[%emt 0:04:36]} Nd7 {[%emt 0:07:52]} 12. f4 {[%emt 0:08:02]} Nd4 {[%emt 0:02:57]} 13. Nf3 {[%emt 0:01:18]} Nb8 {[%emt 0:04:49]} 14. Qd2 {[%emt 0:04:43]} Nbc6 {[%emt 0:01:28]} 15. Rae1 {[%emt 0:01:40]} a6 {[%emt 0:04:35]} 16. Ne2 {[%emt 0:06:19]} b5 {[%emt 0:05:54]} 17. b3 {[%emt 0:01:02]} Qd7 {[%emt 0:03:26]} 18. f5 {[%emt 0:07:31]} Nxe2+ {[%emt 0:13:40]} 19. Rxe2 {[%emt 0:00:58]} Ne5 {[%emt 0:02:09]} 20. Bh6 {[%emt 0:07:47]} f6 {[%emt 0:03:02]} 21. Be3 {[%emt 0:09:35]} e6 {[%emt 0:07:37]} 22. cxb5 {[%emt 0:10:42]} axb5 {[%emt 0:00:34]} 23. d4 {[%emt 0:00:15]} Nxf3+ {[%emt 0:08:19]} 24. Bxf3 {[%emt 0:00:05]} gxf5 {[%emt 0:00:21]} 25. exf5 {[%emt 0:02:26]} e5 {[%emt 0:00:33]} 26. d5 {[%emt 0:06:16]} b4 {[%emt 0:04:43]} 27. Rg2 {[%emt 0:02:00]} Rce8 {[%emt 0:10:02]} 28. Be4 {[%emt 0:00:38]} Kh8 {[%emt 0:04:21]} 29. g4 {[%emt 0:00:09]} Qf7 {[%emt 0:00:59]} 30. Kh2 {[%emt 0:01:09]} Rg8 {[%emt 0:00:21]} 31. Rd1 {[%emt 0:03:55]} Bf8 {[%emt 0:01:16]} 32. Qf2 {[%emt 0:00:23]} Be7 {[%emt 0:01:31]} 33. Qf3 {[%emt 0:00:05]} h5 {[%emt 0:01:14]} 34. Rdg1 {[%emt 0:00:53]} Rg7 {[%emt 0:01:52]} 35. g5 {[%emt 0:02:47]} fxg5 {[%emt 0:00:36]} 36. Bxg5 {[%emt 0:00:33]} Bxg5 {[%emt 0:03:06]} 37. Rxg5 {[%emt 0:00:05]} Rxg5 {[%emt 0:01:22]} 38. Rxg5 {[%emt 0:00:05]} Rg8 {[%emt 0:00:23]} 39. Rxh5+ {[%emt 0:00:19]} Kg7 {[%emt 0:00:02]} 40. f6+ {[%emt 0:00:34]} 1-0

[Event "XVIII Orsha IM 2020"]
[Site "Orsha"]
[Date "2020.01.22"]
[Round "7.1"]
[White "Makoveev, Ilya"]
[Black "Gogolev, Artem"]
[Result "1/2-1/2"]
[ECO "C65"]
[WhiteElo "2277"]
[BlackElo "2328"]
[Annotator "ChessBase"]
[PlyCount "72"]
[EventDate "2020.01.18"]
[EventType "tourn"]
[EventCountry "BLR"]
[SourceTitle "playchess.com"]
[Source "ChessBase"]
[SourceQuality "1"]
[TimeControl "5400+30"]

1. e4 {[%emt 0:00:00]} e5 {[%emt 0:07:55]} 2. Nf3 {[%emt 0:00:00]} Nc6 {[%emt 0:00:09]} 3. Bb5 {[%emt 0:00:30]} Nf6 {[%emt 0:00:08]} 4. d3 {[%emt 0:00:20]} Bc5 {[%emt 0:03:08]} 5. Bxc6 {[%emt 0:00:50]} dxc6 {[%emt 0:02:24]} 6. Nbd2 {[%emt 0:00:20]} O-O {[%emt 0:01:04]} 7. Nc4 {[%emt 0:01:00]} Nd7 {[%emt 0:02:13]} 8. Qe2 {[%emt 0:01:00]} Re8 {[%emt 0:02:03]} 9. Bd2 {[%emt 0:00:30]} Bd6 {[%emt 0:06:00]} 10. O-O-O {[%emt 0:02:31]} Nf8 {[%emt 0:07:44]} 11. h4 {[%emt 0:02:30]} b5 {[%emt 0:02:37]} 12. Ne3 {[%emt 0:00:19]} a5 {[%emt 0:06:12]} 13. h5 {[%emt 0:02:40]} a4 {[%emt 0:05:08]} 14. Nh4 {[%emt 0:05:10]} Ne6 {[%emt 0:07:04]} 15. Nef5 {[%emt 0:03:05]} Be7 {[%emt 0:05:38]} 16. Kb1 {[%emt 0:29:40]} Bg5 {[%emt 0:03:08]} 17. Bc3 {[%emt 0:02:27]} Nd4 {[%emt 0:04:46]} 18. Bxd4 {[%emt 0:03:38]} exd4 {[%emt 0:00:45]} 19. Qg4 {[%emt 0:00:29]} Qf6 {[%emt 0:01:42]} 20. Qg3 {[%emt 0:12:37]} Bxh4 {[%emt 0:03:00]} 21. Nxh4 {[%emt 0:00:37]} a3 {[%emt 0:01:16]} 22. b3 {[%emt 0:00:48]} Qd6 {[%emt 0:05:02]} 23. f4 {[%emt 0:00:22]} h6 {[%emt 0:01:55]} 24. Nf3 {[%emt 0:06:42]} Qc5 {[%emt 0:01:38]} 25. Qe1 {[%emt 0:09:18]} Bg4 {[%emt 0:01:11]} 26. Rh4 {[%emt 0:00:38]} f5 {[%emt 0:00:49]} 27. e5 {[%emt 0:04:09]} Rad8 {[%emt 0:01:41]} 28. Qd2 {[%emt 0:02:34]} Bxf3 {[%emt 0:01:00]} 29. gxf3 {[%emt 0:00:02]} Qd5 {[%emt 0:00:17]} 30. Rh3 {[%emt 0:00:11]} c5 {[%emt 0:03:19]} 31. Qa5 {[%emt 0:10:33]} Qc6 32. Qd2 {[%emt 0:00:30]} Qd5 {[%emt 0:15:04]} 33. Rg3 {[%emt 0:00:30]} c4 {[%emt 0:00:30]} 34. Rdg1 {[%emt 0:00:30]} Rd7 {[%emt 0:00:30]} 35. Qg2 {[%emt 0:00:30]} Ree7 {[%emt 0:00:30]} 36. Rg6 {[%emt 0:00:30]} Kh8 {[%emt 0:00:30]} 1/2-1/2

[Event "XVIII Orsha IM 2020"]
[Site "Orsha"]
[Date "2020.01.22"]
[Round "7.5"]
[White "Runets, Ivan"]
[Black "Alekseev, Vadim"]
[Result "1/2-1/2"]
[ECO "A44"]
[WhiteElo "2304"]
[BlackElo "2354"]
[Annotator "ChessBase"]
[PlyCount "84"]
[EventDate "2020.01.18"]
[EventType "tourn"]
[EventCountry "BLR"]
[SourceTitle "playchess.com"]
[Source "ChessBase"]
[SourceQuality "1"]
[TimeControl "5400+30"]

1. d4 {[%emt 0:01:07]} c5 {[%emt 0:00:00]} 2. d5 {[%emt 0:00:12]} e5 {[%emt 0:00:00]} 3. e4 {[%emt 0:03:52]} d6 {[%emt 0:00:17]} 4. Nc3 {[%emt 0:00:45]} Be7 {[%emt 0:00:08]} 5. Nf3 {[%emt 0:03:35]} a6 {[%emt 0:00:58]} 6. a4 {[%emt 0:02:24]} Bg4 {[%emt 0:00:35]} 7. Bd3 {[%emt 0:03:47]} Nd7 {[%emt 0:05:40]} 8. h3 {[%emt 0:02:57]} Bxf3 {[%emt 0:00:06]} 9. Qxf3 {[%emt 0:00:05]} Bg5 {[%emt 0:06:06]} 10. O-O {[%emt 0:04:20]} Bxc1 {[%emt 0:00:46]} 11. Raxc1 {[%emt 0:00:45]} Nh6 {[%emt 0:02:17]} 12. Rb1 {[%emt 0:08:10]} O-O {[%emt 0:00:53]} 13. Nd1 {[%emt 0:02:51]} Rb8 {[%emt 0:02:12]} 14. Ne3 {[%emt 0:00:56]} b5 {[%emt 0:02:57]} 15. axb5 {[%emt 0:00:03]} axb5 {[%emt 0:00:04]} 16. b3 {[%emt 0:00:08]} g6 {[%emt 0:04:26]} 17. Ra1 {[%emt 0:04:36]} c4 {[%emt 0:16:06]} 18. bxc4 {[%emt 0:04:56]} b4 {[%emt 0:00:19]} 19. Qg3 {[%emt 0:04:51]} Nc5 {[%emt 0:16:10]} 20. Rad1 {[%emt 0:04:23]} f6 {[%emt 0:02:55]} 21. Kh2 {[%emt 0:02:22]} Kh8 {[%emt 0:03:00]} 22. f4 {[%emt 0:07:32]} Nf7 {[%emt 0:02:55]} 23. Qh4 {[%emt 0:00:58]} exf4 {[%emt 0:01:36]} 24. Qxf4 {[%emt 0:00:03]} Ne5 {[%emt 0:00:07]} 25. Be2 {[%emt 0:01:02]} Qe7 {[%emt 0:00:46]} 26. Bf3 {[%emt 0:07:31]} Qg7 {[%emt 0:04:26]} 27. Rb1 {[%emt 0:01:31]} Rb7 {[%emt 0:01:15]} 28. g4 {[%emt 0:08:05]} Nxf3+ {[%emt 0:05:55]} 29. Rxf3 {[%emt 0:00:27]} Qe7 {[%emt 0:00:38]} 30. Ng2 {[%emt 0:01:08]} g5 {[%emt 0:05:11]} 31. Qf5 {[%emt 0:00:55]} Qxe4 {[%emt 0:00:27]} 32. Qxe4 {[%emt 0:02:44]} Nxe4 {[%emt 0:00:06]} 33. Rd1 {[%emt 0:01:04]} Re8 {[%emt 0:06:04]} 34. Ne3 {[%emt 0:01:35]} b3 {[%emt 0:00:22]} 35. cxb3 {[%emt 0:03:43]} Rxb3 {[%emt 0:00:02]} 36. Kg2 {[%emt 0:00:08]} Rb2+ {[%emt 0:02:09]} 37. Kg1 {[%emt 0:00:02]} Rb3 {[%emt 0:00:46]} 38. Kg2 {[%emt 0:01:45]} Rb2+ {[%emt 0:00:59]} 39. Kg1 {[%emt 0:00:01]} Rb3 {[%emt 0:00:52]} 40. Kg2 {[%emt 0:01:54]} Rb2+ {[%emt 0:09:29]} 41. Kg1 {[%emt 0:11:17]} Ra8 {[%emt 0:00:30]} 42. Rd4 {[%emt 0:00:30]} Ra5 {[%emt 0:00:30]} 1/2-1/2